fUST/lending_fUST_20250105
["ID","MTS","AMOUNT","RATE_DAILY","PERIOD"]
[347665135,1736039456282,-252.644046,0.00019452,2]
[347665136,1736039456291,-252.644046,0.00019452,2]
[347665137,1736039456301,-252.644046,0.00019452,2]
[347665138,1736039456310,-252.644046,0.00019452,2]
[347665139,1736039456319,-252.644046,0.00019452,2]
[347665140,1736039456328,-252.644054,0.00019452,2]
[347665141,1736039456337,-500.0,0.00019452,3]
[347665142,1736039456346,-500.0,0.00019452,3]
[347665143,1736039456355,-500.0,0.00019452,3]
[347665144,1736039456364,-7999.1,0.00019452,3]
[347665145,1736039456373,-500.0,0.00019452,3]
[347665146,1736039456383,-500.0,0.00019452,3]
[347665147,1736039456392,-1405.09,0.00019452,2]
[347665148,1736039456401,-500.0,0.00019452,3]
[347665149,1736039456410,-500.0,0.00019452,3]
[347665150,1736039456420,-500.0,0.00019452,3]
[347665151,1736039456429,-805.7,0.00019452,3]
[347665152,1736039456439,-4753.5,0.00019452,3]
[347665153,1736039456448,-1237.84,0.00019452,3]
[347665154,1736039456458,-500.0,0.00019452,3]
[347665155,1736039456467,-1266.95,0.00019452,3]
[347665156,1736039456477,-500.0,0.00019452,3]
[347665157,1736039456486,-500.0,0.00019452,3]
[347665158,1736039456497,-751.92,0.00019452,3]
[347665159,1736039456508,-500.0,0.00019452,3]
[347665160,1736039456518,-990.29,0.00019452,3]
[347665161,1736039456527,-500.0,0.00019452,3]
[347665162,1736039456537,-500.0,0.00019452,3]
[347665163,1736039456549,-655.37,0.00019452,3]
[347665164,1736039456559,-862.16,0.00019452,3]
[347665165,1736039456568,-500.0,0.00019452,3]
[347665166,1736039456579,-2624.53,0.00019452,3]
[347665167,1736039456589,-500.0,0.00019452,3]
[347665168,1736039456598,-500.0,0.00019452,3]
[347665169,1736039456607,-4895.22,0.00019452,3]
[347665170,1736039456617,-500.0,0.00019452,3]
[347665171,1736039456626,-1542.31,0.00019452,3]
[347665172,1736039456636,-682.71,0.00019452,3]
[347665173,1736039456645,-500.0,0.00019452,3]
[347665174,1736039456655,-1251.38,0.00019452,3]
[347665175,1736039456664,-150.08,0.00019452,2]
[347665176,1736039456673,-150.08,0.00019452,2]
[347665177,1736039456682,-500.0,0.00019452,3]
[347665178,1736039456692,-150.18,0.00019452,2]
[347665179,1736039456701,-548.6,0.00019452,3]
[347665180,1736039456711,-150.08,0.00019452,2]
[347665181,1736039456720,-150.08,0.00019452,2]
[347665182,1736039456730,-1001.57,0.00019452,3]
[347665183,1736039456739,-500.0,0.00019452,3]
[347665184,1736039456749,-150.08,0.00019452,2]
[347665185,1736039456759,-500.0,0.00019452,3]
[347665186,1736039456768,-150.08,0.00019452,2]
[347665187,1736039456778,-500.0,0.00019452,3]
[347665188,1736039456787,-150.18,0.00019452,2]
[347665189,1736039456797,-500.0,0.00019452,3]
[347665190,1736039456806,-500.0,0.00019452,3]
[347665191,1736039456816,-500.0,0.00019452,2]
[347665192,1736039456826,-500.0,0.00019452,3]
[347665193,1736039456836,-500.0,0.00019452,3]
[347665194,1736039456845,-500.0,0.00019452,2]
[347665195,1736039456855,-165.79104609,0.00019452,2]
[347665196,1736039456864,-150.18,0.00019452,2]
[347665197,1736039456874,-150.18,0.00019452,2]
[347665198,1736039456883,-1545.25,0.00019452,3]
[347665199,1736039456892,-500.0,0.00019452,3]
[347665200,1736039456902,-150.82998135,0.00019452,2]
[347665201,1736039456912,-154.63968433,0.00019452,2]
[347665202,1736039456922,-150.08,0.00019452,2]
[347665203,1736039456931,-150.08,0.00019452,2]
[347665204,1736039456941,-185.11853107,0.00019452,2]
[347665205,1736039456951,-39511.22,0.00019452,3]
[347665206,1736039456960,-500.0,0.00019452,2]
[347665207,1736039456971,-670.63,0.00019452,3]
[347665208,1736039456980,-500.0,0.00019452,2]
[347665209,1736039456989,-150.08,0.00019452,2]
[347665210,1736039456999,-979.65,0.00019452,3]
[347665211,1736039457009,-150.08,0.00019452,2]
[347665212,1736039457019,-500.0,0.00019452,3]
[347665213,1736039457028,-3123.68,0.00019452,3]
[347665214,1736039457038,-500.0,0.00019452,3]
[347665215,1736039457047,-1259.97,0.00019452,3]
[347665216,1736039457057,-500.0,0.00019452,3]
[347665217,1736039457066,-500.0,0.00019452,3]
[347665218,1736039457075,-518.2,0.00019452,3]
[347665219,1736039457085,-500.0,0.00019452,3]
[347665220,1736039457094,-932.85,0.00019452,3]
[347665221,1736039457104,-500.0,0.00019452,3]
[347665222,1736039457113,-500.0,0.00019452,3]
[347665223,1736039457123,-3194.01,0.00019452,3]
[347665224,1736039457135,-500.0,0.00019452,3]
[347665225,1736039457147,-1652.51,0.00019452,3]
[347665226,1736039457157,-1335.496854,0.00019452,2]
[347665227,1736039457168,-1335.496854,0.00019452,2]
[347665228,1736039457177,-1335.496854,0.00019452,2]
[347665229,1736039457186,-500.0,0.00019452,3]
[347665230,1736039457196,-3422.63,0.00019452,3]
[347665231,1736039457206,-1335.496854,0.00019452,2]
[347665232,1736039457215,-1335.496854,0.00019452,2]
[347665233,1736039457225,-1335.49684962,0.00019452,2]
[347665234,1736039457234,-872.52,0.00019452,3]
[347665235,1736039457244,-1473.34,0.00019452,3]
[347665236,1736039457253,-500.0,0.00019452,3]
[347665237,1736039457262,-1642.77,0.00019452,3]
[347665238,1736039457272,-601.01,0.00019452,3]
[347665239,1736039457281,-1416.66,0.00019452,3]
[347665240,1736039457291,-500.0,0.00019452,3]
[347665241,1736039457301,-2183.93,0.00019452,3]
[347665242,1736039457311,-500.0,0.00019452,3]
[347665243,1736039457320,-500.0,0.00019452,3]
[347665244,1736039457329,-500.0,0.00019452,3]
[347665245,1736039457339,-1115.06,0.00019452,3]
[347665246,1736039457348,-7736.34,0.00019452,3]
[347665247,1736039457357,-500.0,0.00019452,3]
[347665248,1736039457366,-1875.29,0.00019452,3]
[347665249,1736039457376,-500.0,0.00019452,3]
[347665250,1736039457385,-500.0,0.00019452,2]
[347665251,1736039457394,-500.0,0.00019452,3]
[347665252,1736039457404,-502.08,0.00019452,3]
[347665253,1736039457413,-500.0,0.00019452,3]
[347665254,1736039457423,-500.0,0.00019452,3]
[347665255,1736039457433,-500.0,0.00019452,3]
[347665256,1736039457442,-600.07,0.00019452,3]
[347665257,1736039457451,-500.0,0.00019452,3]
[347665258,1736039457461,-500.0,0.00019452,3]
[347665259,1736039457470,-500.0,0.00019452,3]
[347665260,1736039457479,-500.0,0.00019452,3]
[347665261,1736039457489,-1416.5,0.00019452,3]
[347665262,1736039457500,-500.0,0.00019452,3]
[347665263,1736039457509,-852.25,0.00019452,3]
[347665264,1736039457519,-511.91,0.00019452,3]
[347665265,1736039457528,-500.0,0.00019452,3]
[347665266,1736039457539,-1465.52,0.00019452,3]
[347665267,1736039457549,-1179.6,0.00019452,3]
[347665268,1736039457558,-3581.34,0.00019452,3]
[347665269,1736039457568,-726.62,0.00019452,3]
[347665270,1736039457579,-500.0,0.00019452,3]
[347665271,1736039457589,-814.36,0.00019452,3]
[347665272,1736039457599,-500.0,0.00019452,3]
[347665273,1736039457608,-500.0,0.00019473,2]
[347665274,1736039457617,-500.0,0.00019473,2]
[347665275,1736039457627,-201.00909,0.00019473,2]
[347665276,1736039457637,-201.009092,0.00019473,2]
[347665277,1736039457647,-199.965379,0.000195,2]
[347665278,1736039457656,-199.965379,0.000195,2]
[347665279,1736039457666,-5825.99,0.000195,2]
[347665280,1736039457676,-151.0,0.000195,2]
[347665281,1736039457686,-151.0,0.000195,2]
[347665282,1736039457696,-12674.42,0.000195,2]
[347665283,1736039457705,-15683.57,0.000195,2]
[347665284,1736039457714,-306.0,0.00019507,2]
[347665285,1736039457723,-152.63,0.00019558,2]
[347665286,1736039457732,-420.0,0.00019568,2]
[347665287,1736039457742,-3175.93520529,0.0001959,2]
[347665288,1736039457751,-43058.5348962,0.000196,7]
[347665289,1736039457761,-151.0,0.000196,2]
[347665290,1736039457770,-151.0,0.000196,2]
[347665291,1736039457779,-6080.02058657,0.00019608,2]
[347665292,1736039457789,-151.0,0.00019608,2]
[347665293,1736039457798,-154.450676,0.00019608,2]
[347665294,1736039457807,-154.450676,0.00019608,2]
[347665295,1736039457816,-569.748929,0.00019608,2]
[347665296,1736039457825,-569.748929,0.00019608,2]
[347665297,1736039457834,-1200.0,0.00019648,2]
[347665298,1736039457843,-296.376,0.00019648,2]
[347665299,1736039457853,-5000.0,0.00019681,7]
[347665300,1736039457863,-2000.0,0.000197,2]
[347665301,1736039457872,-1865.75436746,0.000197,2]
[347665302,1736039457922,-134.24563254,0.000197,2]
[347665303,1736039457931,-151.0,0.000197,2]
[347665304,1736039457941,-194.825448,0.000197,2]
[347665305,1736039457950,-151.0,0.000197,2]
[347665306,1736039457960,-194.825448,0.000197,2]
[347665307,1736039457970,-227.39081,0.000197,2]
[347665308,1736039457979,-831.830151,0.000197,2]
[347665309,1736039457989,-151.0,0.000197,2]
[347665310,1736039457999,-831.830151,0.000197,2]
[347665311,1736039458008,-278.26311,0.000197,2]
[347665312,1736039458017,-225.0694082,0.00019721,2]
[347665313,1736039458026,-150.08,0.00019726,2]
[347665314,1736039458036,-151.86213554,0.00019726,2]
[347665315,1736039458046,-150.60167648,0.00019726,2]
[347665316,1736039458055,-150.50355297,0.00019726,2]
[347665317,1736039458064,-150.08,0.00019726,2]
[347665318,1736039458073,-150.08,0.00019726,2]
[347665319,1736039458083,-800.16,0.00019726,2]
[347665320,1736039458092,-677.29892359,0.00019726,2]
[347665321,1736039458102,-150.08,0.00019726,2]
[347665322,1736039458111,-500.0,0.00019726,2]
[347665323,1736039458120,-500.0,0.00019726,2]
[347665324,1736039458130,-150.08,0.00019726,2]
[347665325,1736039458139,-199.965379,0.00019726,2]
[347665326,1736039458148,-199.965379,0.00019726,2]
[347665327,1736039458157,-199.965379,0.00019726,2]
[347665328,1736039458167,-199.965371,0.00019726,2]
[347665329,1736039458176,-151.0,0.00019726,2]
[347665330,1736039458185,-151.0,0.00019726,2]
[347665331,1736039458194,-154.450676,0.00019726,2]
[347665332,1736039458203,-154.450676,0.00019726,2]
[347665333,1736039458212,-154.450676,0.00019726,2]
[347665334,1736039458221,-154.450676,0.00019726,2]
[347665335,1736039458231,-154.450676,0.00019726,2]
[347665336,1736039458240,-154.450676,0.00019726,2]
[347665337,1736039458250,-154.450676,0.00019726,2]
[347665338,1736039458259,-154.450676,0.00019726,2]
[347665339,1736039458268,-500.0,0.00019726,3]
[347665340,1736039458277,-500.0,0.00019726,3]
[347665341,1736039458286,-569.748929,0.00019726,2]
[347665342,1736039458296,-569.748929,0.00019726,2]
[347665343,1736039458306,-569.748929,0.00019726,2]
[347665344,1736039458316,-569.748929,0.00019726,2]
[347665345,1736039458327,-500.0,0.00019726,3]
[347665346,1736039458337,-500.0,0.00019726,3]
[347665347,1736039458348,-569.748929,0.00019726,2]
[347665348,1736039458358,-569.748929,0.00019726,2]
[347665349,1736039458368,-569.748929,0.00019726,2]
[347665350,1736039458377,-569.748929,0.00019726,2]
[347665351,1736039458387,-500.0,0.00019726,3]
[347665352,1736039458396,-500.0,0.00019726,3]
[347665353,1736039458406,-500.0,0.00019726,3]
[347665354,1736039458415,-160.0,0.00019726,5]
[347665355,1736039458424,-500.0,0.00019726,3]
[347665356,1736039458434,-500.0,0.00019726,3]
[347665357,1736039458443,-500.0,0.00019726,3]
[347665358,1736039458452,-500.0,0.00019726,3]
[347665359,1736039458461,-669.3,0.00019726,3]
[347665360,1736039458470,-500.0,0.00019726,3]
[347665361,1736039458480,-194.825448,0.00019726,2]
[347665362,1736039458490,-151.0,0.00019726,2]
[347665363,1736039458503,-194.825438,0.00019726,2]
[347665364,1736039458512,-227.390806,0.00019726,2]
[347665365,1736039458522,-500.0,0.00019726,3]
[347665366,1736039458532,-500.0,0.00019726,3]
[347665367,1736039458542,-500.0,0.00019726,3]
[347665368,1736039458552,-701.52,0.00019726,3]
[347665369,1736039458561,-704.12,0.00019726,3]
[347665370,1736039458570,-831.830151,0.00019726,2]
[347665371,1736039458581,-831.830155,0.00019726,2]
[347665372,1736039458591,-500.0,0.00019726,3]
[347665373,1736039458600,-544.64935838,0.00019726,3]
[347665374,1736039458610,-500.0,0.00019726,3]
[347665375,1736039458620,-500.0,0.00019726,3]
[347665376,1736039458629,-500.0,0.00019726,3]
[347665377,1736039458638,-500.0,0.00019726,3]
[347665378,1736039458648,-669.35,0.00019726,3]
[347665379,1736039458657,-500.0,0.00019726,3]
[347665380,1736039458667,-500.0,0.00019726,3]
[347665381,1736039458676,-500.0,0.00019726,3]
[347665382,1736039458686,-575.87,0.00019726,3]
[347665383,1736039458695,-500.0,0.00019726,3]
[347665384,1736039458819,-829.32,0.00019726,3]
[347665385,1736039458828,-216.21155899,0.00019726,3]
[347665386,1736039458838,-500.0,0.00019726,3]
[347665387,1736039458847,-557.64,0.00019726,3]
[347665388,1736039458856,-297.00079692,0.00019726,3]
[347665389,1736039458866,-500.0,0.00019726,3]
[347665390,1736039458875,-1142.6,0.00019726,3]
[347665391,1736039458884,-1068.97,0.00019726,3]
[347665392,1736039458894,-200.0,0.00019726,3]
[347665393,1736039458903,-500.0,0.00019726,3]
[347665394,1736039458912,-500.0,0.00019726,3]
[347665395,1736039458923,-706.11,0.00019726,3]
[347665396,1736039458932,-654.24,0.00019726,3]
[347665397,1736039458942,-620.79,0.00019726,3]
[347665398,1736039458951,-988.84,0.00019726,3]
[347665399,1736039458960,-654.11,0.00019726,3]
[347665400,1736039458969,-549.01,0.00019726,3]
[347665401,1736039458978,-500.0,0.00019726,3]
[347665402,1736039458987,-783.45,0.00019726,3]
[347665403,1736039458997,-500.0,0.00019726,3]
[347665404,1736039459006,-500.0,0.00019726,3]
[347665405,1736039459016,-500.0,0.00019726,3]
[347665406,1736039459025,-500.0,0.00019726,3]
[347665407,1736039459035,-500.0,0.00019726,3]
[347665408,1736039459044,-680.3,0.00019726,3]
[347665409,1736039459053,-500.0,0.00019726,3]
[347665410,1736039459063,-718.76,0.00019726,3]
[347665411,1736039459072,-1040.55,0.00019726,3]
[347665412,1736039459081,-500.0,0.00019726,3]
[347665413,1736039459090,-500.0,0.00019726,3]
[347665414,1736039459099,-500.0,0.00019726,3]
[347665415,1736039459108,-500.0,0.00019726,3]
[347665416,1736039459117,-500.0,0.00019726,3]
[347665417,1736039459126,-616.73,0.00019726,3]
[347665418,1736039459136,-985.8,0.00019726,3]
[347665419,1736039459145,-500.0,0.00019726,3]
[347665420,1736039459154,-500.0,0.00019726,3]
[347665421,1736039459164,-500.0,0.00019726,3]
[347665422,1736039459173,-500.0,0.00019726,3]
[347665423,1736039459182,-500.0,0.00019726,3]
[347665424,1736039459191,-500.0,0.00019726,3]
[347665425,1736039459201,-343.18157912,0.00019726,3]
[347665426,1736039459211,-500.0,0.00019726,3]
[347665427,1736039459221,-500.0,0.00019726,2]
[347665428,1736039459230,-500.0,0.00019726,3]
[347665429,1736039459239,-1156.69,0.00019726,3]
[347665430,1736039459248,-244.71852036,0.00019726,3]
[347665431,1736039459258,-500.0,0.00019726,3]
[347665432,1736039459267,-500.0,0.00019726,3]
[347665433,1736039459276,-7999.1,0.00019726,3]
[347665434,1736039459285,-500.0,0.00019726,3]
[347665435,1736039459294,-500.0,0.00019726,3]
[347665436,1736039459303,-1405.09,0.00019726,2]
[347665437,1736039459313,-500.0,0.00019726,3]
[347665438,1736039459323,-500.0,0.00019726,3]
[347665439,1736039459331,-500.0,0.00019726,3]
[347665440,1736039459341,-805.7,0.00019726,3]
[347665441,1736039459350,-4753.5,0.00019726,3]
[347665442,1736039459359,-1237.84,0.00019726,3]
[347665443,1736039459368,-500.0,0.00019726,3]
[347665444,1736039459377,-1266.95,0.00019726,3]
[347665445,1736039459386,-500.0,0.00019726,3]
[347665446,1736039459396,-500.0,0.00019726,3]
[347665447,1736039459405,-751.92,0.00019726,3]
[347665448,1736039459414,-500.0,0.00019726,3]
[347665449,1736039459426,-990.29,0.00019726,3]
[347665450,1736039459435,-500.0,0.00019726,3]
[347665451,1736039459445,-500.0,0.00019726,3]
[347665452,1736039459454,-655.37,0.00019726,3]
[347665453,1736039459463,-862.16,0.00019726,3]
[347665454,1736039459473,-500.0,0.00019726,3]
[347665455,1736039459482,-2624.53,0.00019726,3]
[347665456,1736039459491,-500.0,0.00019726,3]
[347665457,1736039459501,-500.0,0.00019726,3]
[347665458,1736039459510,-4895.22,0.00019726,3]
[347665459,1736039459519,-500.0,0.00019726,3]
[347665460,1736039459529,-1542.31,0.00019726,3]
[347665461,1736039459538,-682.71,0.00019726,3]
[347665462,1736039459548,-500.0,0.00019726,3]
[347665463,1736039459557,-1251.38,0.00019726,3]
[347665464,1736039459567,-500.0,0.00019726,3]
[347665465,1736039459576,-548.6,0.00019726,3]
[347665466,1736039459585,-1001.57,0.00019726,3]
[347665467,1736039459595,-500.0,0.00019726,3]
[347665468,1736039459605,-611.5027684,0.00019726,3]
[347665469,1736039459614,-500.0,0.00019726,3]
[347665470,1736039459624,-500.0,0.00019726,3]
[347665471,1736039459633,-500.0,0.00019726,3]
[347665472,1736039459642,-13.95511696,0.00019726,3]
[347665473,1736039459701,-486.04488304,0.00019726,3]
[347665474,1736039459712,-500.0,0.00019726,3]
[347665475,1736039459722,-1143.55527696,0.00019726,3]
[347665476,1736039640815,2049.0,0.00025,120]
[347665477,1736040070500,293.492333,0.00013973,2]
[347665484,1736040432143,-300.0,0.00017904,2]
[347665485,1736040432166,-4558.95616651,0.00017905,2]
[347665487,1736040521035,359.99999954,0.0002,120]
[347665488,1736040557090,-980.0,0.00017,2]
[347665511,1736040632842,-335.40292254,0.0001683,2]
[347665531,1736040633022,-335.40292254,0.00017,2]
[347665532,1736040633032,-300.0,0.00017904,2]
[347665534,1736040633042,-4611.80987101,0.00017905,2]
[347665537,1736040633054,-4142.79044524,0.00017905,2]
[347665542,1736040633103,-5094.62903893,0.00017905,2]
[347665757,1736040640971,-1799.07658311,0.00017905,2]
[347665758,1736040640982,-1303.89301607,0.00017905,2]
[347665759,1736040640993,-360.89015631,0.00017905,2]
[347665760,1736040641005,-1510.34085457,0.00017905,2]
[347665761,1736040641016,-1186.26016175,0.00017905,2]
[347665771,1736040644400,-331.3537065,0.00017905,2]
[347665772,1736040644411,-176.2058721,0.00017931,2]
[347665773,1736040644421,-303.027553,0.0001815,2]
[347665774,1736040644430,-151.21476271,0.00018459,2]
[347665775,1736040644440,-202.3140027,0.00018709,2]
[347665776,1736040644449,-287.831,0.00018709,2]
[347665777,1736040644459,-486.787,0.0001874,2]
[347665778,1736040644469,-237.52,0.0001889,2]
[347665779,1736040644478,-302.84859387,0.00019,2]
[347665780,1736040644488,-344.80869026,0.00019078,2]
[347665781,1736040644498,-344.80869026,0.00019147,2]
[347665782,1736040644507,-237.52,0.00019168,2]
[347665783,1736040644516,-61.28003675,0.00019168,2]
[347665784,1736040644528,-176.23996325,0.00019168,2]
[347665785,1736040644538,-513.26550794,0.00019173,2]
[347665786,1736040644547,-194.80435618,0.00019173,2]
[347665787,1736040644559,-305.19564382,0.00019173,2]
[347665789,1736040644569,-500.0,0.00019173,2]
[347665791,1736040644578,-153.54,0.00019177,2]
[347665793,1736040644588,-499.0,0.00019177,2]
[347665794,1736040644598,-156.5,0.00019177,2]
[347665795,1736040644607,-500.0,0.00019177,2]
[347665796,1736040644617,-191.16724306,0.00019177,2]
[347665797,1736040644636,-500.0,0.00019177,2]
[347665798,1736040644647,-500.0,0.00019177,2]
[347665799,1736040644657,-500.0,0.00019177,2]
[347665800,1736040644668,-97.59711312,0.00019177,2]
[347665826,1736040646712,-152.0,0.00019151,2]
[347665827,1736040646722,-80.75285243,0.00019177,2]
[347665828,1736040646731,-328.78410626,0.00019177,2]
[347665829,1736040646740,-500.0,0.00019177,2]
[347665830,1736040646749,-572.58832993,0.00019177,2]
[347665831,1736040646759,-500.0,0.00019177,2]
[347665832,1736040646768,-56.80692189,0.00019177,2]
[347665834,1736040646802,-443.19307811,0.00019177,2]
[347665836,1736040646812,-500.0,0.00019177,2]
[347665838,1736040646822,-500.0,0.00019177,2]
[347665841,1736040646832,-500.0,0.00019177,2]
[347665843,1736040646841,-474.66744102,0.00019177,2]
[347665844,1736040646851,-500.0,0.00019177,2]
[347665846,1736040646861,-500.0,0.00019177,2]
[347665848,1736040646870,-200.0,0.00019177,2]
[347665850,1736040646880,-206.31219054,0.00019177,2]
[347665853,1736040646890,-500.0,0.00019177,2]
[347665855,1736040646900,-475.22729033,0.00019177,2]
[347666016,1736040980584,298.408718,0.00013973,2]
[347666017,1736041051643,152.0,0.00025,120]
[347666018,1736041076847,3894.47,0.00025,120]
[347666019,1736041608158,-311.3660871,0.00017815,2]
[347666020,1736041648090,-451.9052077,0.00017637,2]
[347666021,1736041648111,-763.2712948,0.00017969,2]
[347666022,1736041648130,-161.0,0.00018091,2]
[347666023,1736041648150,-300.0,0.00018091,2]
[347666024,1736041648170,-24900.0,0.00018092,2]
[347666025,1736041648190,-400.501502,0.00018347,2]
[347666026,1736041648211,-466.889,0.0001874,2]
[347666027,1736041648231,-302.84859387,0.00019,2]
[347666028,1736041648251,-812.55210648,0.00019077,2]
[347666029,1736041648284,-209.52140652,0.00019078,2]
[347666030,1736041648308,-152.0,0.00019096,2]
[347666031,1736041648329,-697.97,0.000191,3]
[347666032,1736041648349,-153.0,0.000191,2]
[347666033,1736041648370,-209.52140651,0.00019147,2]
[347666034,1736041648616,-500.0,0.00019173,2]
[347666035,1736041648637,-505.04532082,0.00019173,2]
[347666036,1736041648657,-307.436,0.00019177,2]
[347666037,1736041648677,-24.77270967,0.00019177,2]
[347666038,1736041648696,-500.0,0.00019177,2]
[347666039,1736041648718,-500.0,0.00019177,2]
[347666040,1736041648738,-500.0,0.00019177,2]
[347666041,1736041648758,-500.0,0.00019177,2]
[347666042,1736041648780,-500.0,0.00019177,2]
[347666043,1736041648800,-500.0,0.00019177,2]
[347666044,1736041648821,-500.0,0.00019177,2]
[347666045,1736041648840,-500.0,0.00019177,2]
[347666046,1736041648862,-500.0,0.00019177,2]
[347666047,1736041648882,-500.0,0.00019177,2]
[347666048,1736041648906,-500.0,0.00019177,2]
[347666049,1736041648926,-550.0,0.00019177,2]
[347666050,1736041648952,-500.0,0.00019177,2]
[347666051,1736041648973,-500.0,0.00019177,2]
[347666052,1736041648994,-500.0,0.00019177,2]
[347666053,1736041649015,-500.0,0.00019177,2]
[347666054,1736041649037,-259.75853563,0.00019177,2]
[347666055,1736041649058,-500.0,0.00019177,2]
[347666056,1736041649080,-500.0,0.00019177,2]
[347666057,1736041649101,-500.0,0.00019177,2]
[347666058,1736041649120,-500.0,0.00019177,2]
[347666059,1736041649140,-547.779419,0.00019177,2]
[347666060,1736041649165,-500.0,0.00019177,2]
[347666061,1736041649187,-17818.35582312,0.00019178,2]
[347666062,1736041649207,-1445.02413313,0.00019178,2]
[347666063,1736041649228,-542.39259467,0.00019178,2]
[347666064,1736041649247,-500.96515701,0.00019178,2]
[347666065,1736041649267,-500.85490989,0.00019178,2]
[347666066,1736041649289,-501.15104513,0.00019178,2]
[347666067,1736041649308,-501.40905302,0.00019178,2]
[347666068,1736041649328,-505.46197364,0.00019178,2]
[347666069,1736041649347,-500.0,0.00019178,2]
[347666070,1736041649368,-567.93583829,0.00019178,2]
[347666071,1736041649387,-504.11222985,0.00019178,2]
[347666072,1736041649407,-501.69030563,0.00019178,2]
[347666073,1736041649426,-501.75358371,0.00019178,2]
[347666074,1736041649446,-502.33417976,0.00019178,2]
[347666075,1736041649466,-501.03011266,0.00019178,2]
[347666076,1736041649488,-501.80287843,0.00019178,2]
[347666077,1736041649507,-501.65205393,0.00019178,2]
[347666078,1736041649527,-502.4280362,0.00019178,2]
[347666079,1736041649546,-501.22049218,0.00019178,2]
[347666080,1736041649566,-504.36658302,0.00019178,2]
[347666081,1736041649586,-473.07406034,0.00019178,2]
[347666082,1736041649606,-504.12208782,0.00019178,2]
[347666083,1736041649625,-516.76589008,0.00019178,2]
[347666084,1736041649646,-501.55745006,0.00019178,2]
[347666085,1736041649665,-501.47557977,0.00019178,2]
[347666086,1736041649686,-500.0,0.00019178,2]
[347666087,1736041649705,-501.29563598,0.00019178,2]
[347666088,1736041649724,-500.0,0.00019178,2]
[347666089,1736041649743,-501.11092133,0.00019178,2]
[347666090,1736041649764,-500.0,0.00019178,2]
[347666091,1736041649791,-227.85995564,0.00019178,2]
[347666092,1736041649810,-502.18966747,0.00019178,2]
[347666093,1736041649830,-515.47128624,0.00019178,2]
[347666094,1736041649850,-372.11797072,0.00019178,2]
[347666095,1736041649870,-500.0,0.00019178,2]
[347666096,1736041649890,-503.08768851,0.00019178,2]
[347666097,1736041649912,-504.2733378,0.00019178,2]
[347666098,1736041649932,-524.70802055,0.00019178,2]
[347666099,1736041649953,-500.0,0.00019178,2]
[347666100,1736041649974,-388.10205458,0.00019178,2]
[347666101,1736041649994,-500.86920216,0.00019178,2]
[347666102,1736041650013,-504.44926176,0.00019178,2]
[347666103,1736041650034,-500.95491972,0.00019178,2]
[347666104,1736041650054,-503.80225836,0.00019178,2]
[347666105,1736041650074,-503.97386531,0.00019178,2]
[347666106,1736041650094,-501.07521182,0.00019178,2]
[347666107,1736041650114,-500.0,0.00019178,2]
[347666108,1736041650133,-500.0,0.00019178,2]
[347666109,1736041650153,-501.37399593,0.00019178,2]
[347666110,1736041650172,-504.4873271,0.00019178,2]
[347666111,1736041650192,-500.0,0.00019178,2]
[347666112,1736041650212,-500.0,0.00019178,2]